bitfinex/quotes_ETHUSD_20250525
["timestamp","ask_amount","ask_price","bid_price","bid_amount"]
[1748165783660,0.55,2473.2,2473.1,4.612]
[1748165784050,4.584,2473.2,2473.1,4.612]
[1748165785204,22.574,2473.2,2473.1,4.612]
[1748165785492,12.584,2473.2,2473.1,4.612]
[1748165785707,13.92081,2473.2,2473.1,4.612]
[1748165786178,14.2968713,2473.2,2473.1,0.12]
[1748165786377,0.55,2473.0,2472.1,0.02]
[1748165786577,0.55,2472.6,2472.1,0.02]
[1748165786737,9.3341,2472.4,2472.1,0.02]
[1748165786938,0.55,2472.2,2472.1,0.02]
[1748165787561,0.9260613,2472.2,2472.1,0.02]
[1748165788975,4.9600613,2472.2,2472.1,0.02]
[1748165789183,0.3760613,2472.3,2472.1,0.367]
[1748165789693,0.3760613,2472.3,2472.1,0.02]
[1748165789880,0.9260613,2472.3,2472.2,6.063]
[1748165790251,0.55,2472.3,2472.2,6.063]
[1748165790451,0.3760613,2472.5,2472.2,6.41]
[1748165791258,0.55,2472.5,2472.2,6.41]
[1748165791653,0.60055642,2472.5,2472.3,6.293]
[1748165791950,0.55,2472.5,2472.3,6.293]
[1748165792496,0.55,2472.5,2472.1,0.02]
[1748165792497,1.43305785,2472.5,2472.4,6.294]
[1748165792662,2.72293016,2472.5,2472.4,6.294]
[1748165792855,2.72293016,2472.5,2472.1,0.02]
[1748165793178,0.55,2472.3,2472.2,6.294]
[1748165793349,0.55,2472.3,2472.1,0.02]
[1748165793553,0.55,2472.3,2472.2,6.294]
[1748165793793,0.85989915,2472.3,2472.1,0.02]
[1748165793994,17.23682078,2472.3,2472.2,6.294]
[1748165794351,9.69239915,2472.3,2472.2,6.294]
[1748165794797,10.06790878,2472.3,2472.2,6.294]
[1748165795530,0.55,2472.2,2472.1,0.02]
[1748165795698,0.75679088,2472.2,2472.1,6.314]
[1748165796798,8.55,2472.2,2472.1,6.314]
[1748165797494,9.3825,2472.2,2472.1,0.02]
[1748165798465,9.75767947,2472.2,2472.1,0.02]
[1748165798895,13.79367947,2472.2,2472.1,0.02]
[1748165799508,13.79367947,2472.2,2472.1,6.315]
[1748165799715,16.16968958,2472.2,2472.1,6.315]
[1748165799880,16.16968958,2472.2,2472.1,0.02]
[1748165800282,16.16968958,2472.2,2471.8,8.716]
[1748165800283,1.3613,2471.9,2471.8,15.011]
[1748165801370,12.586,2471.9,2471.8,15.011]
[1748165801570,4.586,2471.9,2471.8,15.011]
[1748165802286,6.68017216,2471.9,2471.8,15.011]
[1748165802713,6.68017216,2471.9,2471.8,15.012]
[1748165802911,7.05503902,2471.9,2471.8,15.012]
[1748165803299,0.37486686,2471.9,2471.8,15.012]
[1748165803798,0.55,2472.0,2471.8,8.716]
[1748165803999,8.09442163,2472.0,2471.8,8.716]
[1748165804397,8.90572163,2472.0,2471.9,6.296]
[1748165804725,12.94172163,2472.0,2471.9,6.296]
[1748165804929,4.586,2472.0,2471.9,6.296]
[1748165805600,4.036,2472.0,2471.9,6.296]
[1748165805798,4.036,2472.0,2471.9,6.6088]
[1748165807321,4.586,2472.0,2471.9,6.6088]
[1748165808052,4.036,2472.0,2471.9,6.6088]
[1748165808483,4.586,2472.0,2471.9,6.6088]
[1748165808681,4.586,2472.0,2471.9,0.3128]
[1748165808912,4.586,2472.0,2471.9,6.6088]
[1748165809526,4.586,2472.0,2471.9,0.3128]
[1748165809822,0.55,2471.9,2471.8,8.716]
[1748165810027,0.55,2471.9,2471.8,15.012]
[1748165810326,0.39949134,2472.7,2471.8,15.012]
[1748165810327,0.55,2472.6,2471.9,0.3128]
[1748165810501,4.036,2472.5,2471.9,0.3128]
[1748165810734,0.60055887,2472.4,2471.9,0.3128]
[1748165811047,0.55,2472.4,2472.0,6.295]
[1748165811251,1.3356,2472.1,2472.0,6.295]
[1748165811432,13.3716,2472.1,2471.8,15.011]
[1748165811626,8.09369852,2471.9,2471.8,15.011]
[1748165813131,8.46925375,2471.9,2471.8,8.716]
[1748165813337,9.25485375,2471.9,2471.8,15.012]
[1748165813657,10.58393913,2471.9,2471.8,15.012]
[1748165814625,14.62093913,2471.9,2471.8,15.012]
[1748165815530,7.07724061,2471.9,2471.8,15.012]
[1748165815833,0.55,2471.8,2471.1,0.12]
[1748165816041,0.55,2471.8,2471.2,6.296]
[1748165816042,0.55,2471.6,2471.2,6.296]
[1748165816523,4.037,2471.5,2471.3,0.3128]
[1748165816857,4.037,2471.5,2471.4,6.296]
[1748165817462,4.037,2471.5,2471.4,15.3288]
[1748165817822,4.037,2471.8,2471.5,0.3128]
[1748165818102,4.037,2471.9,2471.5,0.3128]
[1748165818245,0.37555523,2472.1,2471.5,0.3128]
[1748165818445,4.037,2471.8,2471.5,8.0]
[1748165818649,4.037,2471.8,2471.6,6.296]
[1748165819062,0.20996284,2472.4,2471.7,0.3128]
[1748165819258,4.037,2472.3,2471.7,0.3128]
[1748165819558,0.20996284,2472.4,2471.7,0.3128]
[1748165819765,4.037,2472.3,2471.7,0.3128]
[1748165820273,4.037,2472.2,2471.7,0.3128]
[1748165820574,4.037,2472.2,2471.7,8.0]
[1748165820786,4.037,2472.1,2471.8,0.3128]
[1748165821654,0.55,2472.0,2471.9,6.11]
[1748165822557,0.7505,2472.5,2471.9,6.11]
[1748165822760,4.96281198,2472.4,2471.9,6.11]
[1748165823070,0.55,2472.2,2472.0,0.3128]
[1748165823267,4.586,2472.1,2472.0,0.3128]
[1748165823691,0.55,2472.0,2471.5,0.3128]
[1748165824098,0.55,2472.0,2471.6,6.11]
[1748165824769,0.55,2471.8,2471.7,6.11]
[1748165825378,0.55,2471.8,2471.5,0.3128]
[1748165825577,0.55,2471.8,2471.7,6.11]
[1748165825785,4.586,2471.8,2471.7,6.11]
[1748165825985,5.0446,2471.8,2471.7,6.11]
[1748165828614,0.37702554,2471.9,2471.7,6.11]
[1748165828824,0.37702554,2471.9,2471.8,0.3128]
[1748165829281,4.037,2472.1,2471.8,0.3128]
[1748165829477,4.037,2472.1,2471.8,8.0]
[1748165829781,0.37702554,2472.4,2471.9,0.3128]
[1748165830301,4.037,2472.6,2471.9,0.3128]
[1748165830302,6.06594968,2472.6,2471.9,0.3128]
[1748165831295,2.02894968,2472.6,2471.9,0.3128]
[1748165831779,2.02894968,2472.6,2472.2,0.3128]
[1748165832115,2.02894968,2472.6,2472.5,0.3128]
[1748165832486,2.02894968,2472.6,2472.5,14.4228]
[1748165832685,2.02894968,2472.6,2472.5,6.4228]
[1748165833812,4.036,2472.8,2472.5,6.4228]
[1748165834597,4.036,2473.0,2472.5,6.4228]
[1748165834798,4.036,2473.1,2472.6,0.3128]
[1748165835127,4.036,2473.1,2472.7,0.3128]
[1748165835618,0.55,2473.5,2472.7,0.3128]
[1748165835827,4.036,2473.2,2472.7,0.3128]
[1748165836185,0.55,2473.5,2472.7,0.3128]
[1748165836491,2.23891366,2473.6,2472.7,0.3128]
[1748165836693,4.036,2473.4,2472.7,0.3128]
[1748165837115,0.55,2473.2,2472.8,6.109]
[1748165838692,0.05054107,2473.1,2472.9,5.886]
[1748165838933,0.60054107,2473.1,2473.0,5.886]
[1748165839244,0.55,2473.0,2471.6,0.3128]
[1748165839534,0.55,2472.8,2471.8,8.0]
[1748165839823,9.99,2473.1,2471.9,0.3128]
[1748165840126,4.035,2473.3,2471.9,0.3128]
[1748165841424,4.035,2473.3,2472.1,0.3128]
[1748165842316,1.3515,2473.2,2472.2,5.886]
[1748165842612,1.3515,2473.2,2472.3,0.3128]
[1748165842613,0.53865,2473.1,2472.3,0.3128]
[1748165842830,0.55,2473.1,2472.3,0.3128]
[1748165843322,4.035,2473.4,2472.3,0.3128]
[1748165845031,0.55,2473.7,2472.3,0.3128]
[1748165845199,4.585,2473.7,2472.3,0.3128]
[1748165845400,0.55,2473.5,2472.3,0.3128]
[1748165845601,0.55,2473.5,2472.4,0.3128]
[1748165847097,14.025,2473.8,2472.4,0.3128]
[1748165847303,0.55,2473.7,2472.4,0.3128]
[1748165847805,9.99,2473.8,2472.4,0.3128]
[1748165849056,9.99,2473.8,2472.6,0.3128]
[1748165849546,0.55,2473.7,2472.6,0.3128]
[1748165849894,10.991,2473.8,2472.6,0.3128]
[1748165850533,0.55,2473.7,2472.6,0.3128]
[1748165852934,10.991,2473.8,2472.6,0.3128]
[1748165853249,9.99,2473.8,2472.6,0.3128]
[1748165855972,0.55,2473.7,2472.7,0.3128]
[1748165856126,0.60052863,2473.7,2472.7,6.1968]
[1748165856323,0.55,2473.7,2472.8,8.0]
[1748165856635,0.55,2473.7,2472.9,0.3128]
[1748165856840,1.054,2473.6,2473.0,8.713]
[1748165857040,0.55,2473.7,2473.1,0.3128]
[1748165857551,0.55,2473.7,2473.2,5.884]
[1748165857733,4.584,2473.7,2473.2,5.884]
[1748165858071,9.99,2473.8,2473.3,0.3128]
[1748165858424,11.4494,2473.8,2473.4,5.884]
[1748165859159,0.02,2473.9,2473.4,5.884]
[1748165861426,0.02,2473.9,2473.5,0.3128]
[1748165862159,0.02,2473.9,2473.6,5.669]
[1748165863887,0.02,2473.9,2473.8,0.3128]
[1748165865244,0.02,2473.9,2473.8,0.51126826]
[1748165865629,0.12,2474.9,2473.9,0.3128]
[1748165865845,0.12,2474.9,2474.0,4.033]
[1748165866175,0.12,2474.9,2474.1,0.3128]
[1748165866678,2.02894968,2475.2,2474.1,0.3128]
[1748165866971,2.02894968,2475.2,2474.3,0.3128]
[1748165867131,2.02894968,2475.2,2474.2,0.55]
[1748165867132,2.02894968,2475.2,2474.5,0.3128]
[1748165867338,2.02894968,2475.2,2474.7,0.3128]
[1748165867339,1.22142065,2475.2,2474.7,0.3128]
[1748165867672,0.89142065,2475.2,2474.9,0.3128]
[1748165867854,0.33000001,2475.2,2474.9,0.3128]
[1748165868371,0.33000001,2475.2,2475.0,0.38210425]
[1748165868572,0.33000001,2475.2,2475.1,0.3128]
[1748165868735,0.33000001,2475.2,2475.1,13.9808]
[1748165869946,0.33000001,2475.2,2474.6,9.0248]
[1748165870149,0.88000001,2475.2,2475.1,5.668]
[1748165870372,0.55,2475.2,2475.1,5.668]
[1748165872449,0.55,2475.1,2474.7,8.0]
[1748165872656,0.55,2475.1,2474.8,5.667]
[1748165873577,0.55,2475.3,2474.9,5.666]
[1748165874278,0.55,2475.1,2475.0,5.666]
[1748165875475,4.581,2475.1,2475.0,5.666]
[1748165877841,0.55,2475.0,2474.6,8.712]
[1748165878047,0.55,2475.0,2474.7,5.666]
[1748165878354,0.55,2474.9,2474.8,5.666]
[1748165882179,10.59050576,2475.1,2474.8,5.666]
[1748165882387,1.54489058,2475.0,2474.9,5.46]
[1748165882597,2.09489058,2475.0,2474.9,5.46]
[1748165882748,12.91229058,2475.0,2474.9,5.46]
[1748165882947,1.3774,2474.9,2474.6,8.712]
[1748165883160,12.58448384,2474.8,2474.7,5.46]
[1748165883758,0.55,2474.7,2474.6,8.712]
[1748165883962,0.55,2474.5,2474.1,8.708]
[1748165884159,10.54,2474.5,2474.2,5.46]
[1748165884687,10.54,2474.5,2474.3,5.46]
[1748165884894,1.68674,2474.4,2474.3,5.46]
[1748165885192,0.8274,2474.6,2474.3,5.46]
[1748165885193,4.031,2474.6,2474.3,5.7728]
[1748165885361,4.031,2474.8,2474.3,5.7728]
[1748165885952,4.031,2474.8,2474.4,8.0]
[1748165886293,0.8213,2475.2,2474.4,8.0]
[1748165886496,4.032,2474.8,2474.4,8.0]
[1748165887695,4.032,2474.8,2474.3,5.7728]
[1748165887696,4.032,2474.8,2474.5,5.46]
[1748165889795,4.032,2474.8,2474.3,0.3128]
[1748165890005,4.032,2474.8,2474.4,5.46]
[1748165892298,4.032,2474.8,2474.5,5.46]
[1748165893477,4.032,2474.8,2474.3,0.3128]
[1748165893792,4.032,2474.8,2474.5,8.0]
[1748165894202,0.20992217,2475.6,2474.5,8.0]
[1748165894367,0.20992217,2475.6,2474.6,0.3128]
[1748165894695,0.7607,2475.8,2474.6,0.3128]
[1748165894898,0.6004922,2475.7,2474.6,0.3128]
[1748165895096,1.844474,2475.7,2474.6,0.3128]
[1748165896001,1.844474,2475.7,2474.7,5.46]
[1748165896185,1.844474,2475.7,2474.8,5.46]
[1748165897000,0.55,2475.5,2474.6,0.3128]
[1748165897161,0.55,2475.5,2474.2,0.47941629]
[1748165897162,0.7597,2475.2,2474.3,0.3128]
[1748165897360,4.581,2475.1,2474.7,5.46]
[1748165897562,4.581,2475.1,2474.2,0.47941629]
[1748165897771,0.55,2474.9,2474.3,5.459]
[1748165898168,0.55,2474.9,2474.1,8.708]
[1748165898395,0.60050757,2474.9,2474.2,5.459]
[1748165898593,0.55,2474.7,2474.2,5.459]
[1748165900676,4.031,2474.6,2474.2,5.459]
[1748165901669,0.55,2474.5,2474.2,5.459]
[1748165902499,0.55,2474.3,2474.1,8.708]
[1748165902689,0.55,2474.3,2474.2,5.46]
[1748165906479,4.032,2474.4,2474.1,8.708]
[1748165906677,4.032,2474.4,2474.2,5.248]
[1748165907910,4.582,2474.4,2474.3,5.248]
[1748165912942,0.8141,2474.6,2474.3,5.248]
[1748165913088,10.7943,2474.9,2474.3,5.248]
[1748165913289,4.032,2474.8,2474.3,5.248]
[1748165913600,4.032,2474.7,2474.4,8.3128]
[1748165915100,9.99,2474.9,2474.4,8.3128]
[1748165915306,4.032,2474.8,2474.4,8.3128]
[1748165916393,0.99216949,2475.4,2474.4,8.3128]
[1748165916717,4.032,2475.3,2474.5,0.3128]
[1748165917418,0.99216949,2475.4,2474.5,0.3128]
[1748165917419,4.032,2475.2,2474.5,0.3128]
[1748165918104,4.032,2475.1,2474.5,0.3128]
[1748165919632,4.8142,2475.1,2474.5,0.3128]
[1748165919830,0.60050427,2475.0,2474.6,5.248]
[1748165920016,0.55,2475.0,2474.6,5.248]
[1748165920633,0.7822,2475.1,2474.6,5.248]
[1748165920863,4.032,2474.9,2474.6,5.248]
[1748165921195,4.032,2475.1,2474.7,0.3128]
[1748165921890,4.032,2475.1,2474.7,8.3128]
[1748165924332,4.032,2475.1,2474.7,8.0]
[1748165925739,4.032,2475.1,2474.8,5.248]
[1748165925896,0.7587,2474.9,2474.4,0.3128]
[1748165926102,0.55,2474.8,2474.5,5.248]
[1748165926298,4.031,2474.7,2474.5,5.248]
[1748165927867,4.031,2474.7,2474.6,8.0]
[1748165928450,4.031,2474.7,2474.2,8.0]
[1748165928657,4.031,2474.7,2474.3,5.248]
[1748165929064,0.55,2474.8,2474.3,5.248]
[1748165929375,4.031,2474.7,2474.3,5.248]
[1748165930041,0.55,2474.8,2474.3,5.248]
[1748165930245,4.031,2474.7,2474.3,5.248]
[1748165931236,9.99,2475.1,2474.4,7.52494222]
[1748165931576,9.99,2475.1,2474.5,0.3128]
[1748165931773,9.99,2475.1,2474.6,5.049]
[1748165931975,9.99,2475.1,2474.7,0.3128]
[1748165933977,9.99,2475.1,2474.8,5.048]
[1748165934167,9.99,2475.1,2474.9,5.048]
[1748165935376,9.99,2475.1,2475.0,8.0]
[1748165935904,14.021,2475.1,2475.0,5.048]
[1748165936840,4.031,2475.1,2475.0,5.048]
[1748165938181,0.55,2475.4,2475.0,5.048]
[1748165938339,4.031,2475.1,2475.0,5.048]
[1748165939164,9.99,2475.5,2475.0,5.048]
[1748165939373,4.031,2475.4,2475.0,5.048]
[1748165939740,9.99,2475.5,2475.0,5.048]
[1748165940073,4.031,2475.4,2475.0,5.048]
[1748165940383,4.031,2475.3,2475.1,0.3128]
[1748165941177,4.581,2475.3,2475.2,5.048]
[1748165942749,4.031,2475.3,2475.2,5.048]
[1748165944354,4.031,2475.3,2474.9,0.3128]
[1748165944564,0.55,2475.2,2474.5,0.79221629]
[1748165944779,0.55,2475.0,2474.6,5.048]
[1748165945055,1.44019422,2475.0,2474.6,5.048]
[1748165946031,0.87750958,2474.9,2474.6,5.048]
[1748165946311,0.55,2474.7,2474.6,5.048]
[1748165947806,0.55,2474.7,2474.1,8.708]
[1748165948011,1.335613,2474.6,2474.2,5.048]
[1748165948210,1.2851,2474.6,2474.2,5.048]
[1748165948798,0.2851,2474.6,2474.2,5.048]
[1748165949399,10.54,2474.5,2474.1,8.708]
[1748165949610,10.54,2474.5,2474.3,5.049]
[1748165949830,6.38749422,2474.4,2474.3,5.049]
[1748165950224,6.76417473,2474.4,2474.3,5.049]
[1748165951019,6.81469943,2474.4,2474.3,5.049]
[1748165951200,6.76417473,2474.4,2474.3,5.049]
[1748165951605,2.73317473,2474.4,2474.3,5.049]
[1748165951795,5.71598051,2474.4,2474.3,5.049]
[1748165951992,1.13398051,2474.4,2474.3,5.049]
[1748165952303,4.40868051,2474.4,2474.3,5.049]
[1748165952693,4.95868051,2474.4,2474.3,5.049]
[1748165953096,4.032,2474.4,2474.3,5.049]
[1748165953295,0.55,2474.4,2474.3,5.049]
[1748165953831,0.7573,2474.8,2474.3,5.049]
[1748165954009,4.032,2474.7,2474.3,5.049]
[1748165954204,0.55,2474.6,2474.4,5.049]
[1748165954405,0.55,2474.6,2474.1,8.708]
[1748165954629,0.55,2474.6,2474.2,5.049]
[1748165955429,0.55,2474.6,2474.1,8.708]
[1748165955631,1.08393,2474.6,2474.1,8.708]
[1748165955810,1.08393,2474.6,2474.2,5.049]
[1748165957021,1.08393,2474.6,2474.3,5.049]
[1748165957233,0.7526,2474.5,2474.3,5.049]
[1748165957439,10.7426,2474.5,2474.3,5.049]
[1748165957639,12.328453,2474.5,2474.3,5.049]
[1748165958540,4.032,2474.4,2474.3,5.049]
[1748165958703,0.55,2474.3,2474.1,8.708]
[1748165958899,1.3026,2474.3,2474.2,4.893]
[1748165959142,8.12546359,2474.3,2474.2,4.893]
[1748165959305,8.82754222,2474.3,2474.2,4.893]
[1748165959638,11.11249644,2474.3,2474.2,4.893]
[1748165960012,11.48815023,2474.3,2474.2,4.893]
[1748165960416,7.99520801,2474.3,2474.2,4.893]
[1748165961145,7.61955422,2474.3,2474.2,4.893]
[1748165961645,7.61955422,2474.3,2474.1,8.708]
[1748165961846,5.3346,2474.3,2474.2,4.893]
[1748165962956,0.375367,2474.4,2474.2,4.893]
[1748165963138,4.582,2474.3,2474.2,4.893]
[1748165964610,1.3788,2474.2,2474.1,8.708]
[1748165964843,1.3788,2474.2,2474.1,13.602]
[1748165965166,2.67237422,2474.2,2474.1,13.602]
[1748165965755,5.87657422,2474.2,2474.1,13.602]
[1748165965969,4.583,2474.2,2474.1,13.602]
[1748165968762,5.4108,2474.2,2474.1,13.602]
[1748165969248,15.4008,2474.2,2474.1,13.602]
[1748165970590,15.77630852,2474.2,2474.1,13.602]
[1748165971747,23.77630852,2474.2,2474.1,8.708]
[1748165971952,26.90643359,2474.2,2474.1,13.602]
[1748165972596,26.90643359,2474.2,2474.1,8.708]
[1748165972799,0.55,2473.8,2473.7,4.894]
[1748165973118,22.85534222,2473.8,2473.7,4.894]
[1748165973409,33.14593047,2473.8,2473.7,4.894]
[1748165974222,33.92455745,2473.8,2473.7,4.894]
[1748165974651,1.3516,2473.5,2473.4,4.894]
[1748165974850,12.90954222,2473.5,2473.4,4.894]
[1748165975690,13.28505074,2473.5,2473.4,4.894]
[1748165975853,15.41355581,2473.5,2473.4,4.894]
[1748165976056,15.41355581,2473.5,2473.1,0.12]
[1748165976057,8.55,2473.2,2473.1,0.12]
[1748165976359,21.28605074,2473.2,2473.1,0.12]
[1748165977392,31.27605074,2473.2,2473.1,0.12]
[1748165977595,34.64585581,2473.2,2473.1,0.12]
[1748165979860,37.06785581,2473.2,2473.1,0.12]
[1748165981255,14.53691359,2473.2,2473.1,0.12]
[1748165981459,15.20110852,2473.2,2473.1,0.12]
[1748165981991,14.94950852,2473.2,2473.1,0.12]
[1748165982292,14.024,2473.2,2473.1,0.12]
[1748165982489,9.99,2473.2,2473.1,0.12]
[1748165982681,14.575,2473.2,2473.1,0.12]
[1748165982994,14.025,2473.2,2473.1,0.12]
[1748165983654,9.99,2473.6,2473.2,0.8038]
[1748165984010,4.035,2473.5,2473.2,0.8038]
[1748165984573,0.55,2473.4,2473.2,0.8038]
[1748165985405,9.99,2473.6,2473.2,0.8038]
[1748165985699,4.035,2473.5,2473.2,1.23273957]
[1748165985901,0.55,2473.4,2473.2,1.23273957]
[1748165987098,9.99,2473.6,2473.2,1.23273957]
[1748165987424,4.035,2473.5,2473.2,1.23273957]
[1748165988308,0.55,2473.4,2473.3,4.896]
[1748165988610,4.035,2473.4,2473.3,6.1758]
[1748165990811,0.55,2474.0,2473.3,6.1758]
[1748165991007,0.55,2473.8,2473.3,6.1758]
[1748165991252,0.55,2473.8,2473.4,0.7729]
[1748165991528,4.034,2474.0,2473.6,0.7729]
[1748165991933,9.99,2474.3,2473.6,0.7729]
[1748165992114,4.034,2474.2,2473.6,0.7729]
[1748165994015,4.034,2474.2,2473.9,0.7729]
[1748165995164,4.034,2474.2,2473.1,7.64494222]
[1748165995165,7.52494222,2474.0,2473.1,0.12]
[1748165995297,0.55,2473.3,2473.1,0.12]
[1748165995501,4.584,2473.2,2473.1,0.12]
[1748165996464,0.55,2473.2,2473.1,0.12]
[1748165996823,0.8164,2473.8,2473.2,0.7729]
[1748165997066,8.07494222,2473.4,2473.1,0.12]
[1748165997221,0.55,2473.2,2473.1,0.12]
[1748165997425,4.034,2473.3,2473.1,0.12]
[1748165997426,0.55,2473.7,2473.1,0.12]
[1748165997624,0.55,2473.2,2473.1,0.12]
[1748165999077,1.3664,2473.2,2473.1,0.12]
[1748165999229,8.94189743,2473.2,2473.1,0.12]
[1748165999430,9.78553196,2473.2,2473.1,0.12]
[1748166000325,10.16090561,2473.2,2473.1,0.12]
[1748166002577,16.07494222,2472.7,2472.6,4.952]
[1748166002776,18.09089272,2472.7,2472.6,4.952]
[1748166002928,18.46626637,2472.7,2472.6,4.952]
[1748166003369,10.94132415,2472.7,2472.6,4.952]
[1748166003536,16.45031587,2472.7,2472.6,4.952]
[1748166003839,20.48431587,2472.7,2472.6,4.952]
[1748166004163,4.95937365,2472.7,2472.6,4.952]
[1748166004840,4.584,2472.7,2472.6,4.952]
[1748166005853,0.55,2472.8,2472.6,4.952]
[1748166006049,4.585,2472.7,2472.6,4.952]
[1748166006365,4.585,2472.7,2472.1,0.02]
[1748166006366,0.55,2472.6,2472.1,0.02]
[1748166006564,8.07494222,2472.4,2472.2,4.953]
[1748166006739,0.55,2472.4,2472.2,4.953]
[1748166007061,4.585,2472.3,2472.2,4.953]
[1748166008853,5.0435,2472.3,2472.2,4.953]
[1748166009053,0.55,2472.2,2472.1,0.02]
[1748166009269,8.55,2472.2,2472.1,0.02]
[1748166010065,0.8334542,2472.3,2472.1,0.02]
[1748166010272,0.3749542,2472.3,2472.1,0.02]
[1748166010571,4.035,2472.2,2472.1,0.02]
[1748166011052,0.3749542,2473.1,2472.1,8.7731]
[1748166011376,7.52494222,2472.7,2472.1,0.7731]
[1748166011553,4.035,2473.0,2472.1,0.7731]
[1748166011746,4.035,2472.9,2472.1,0.7731]
[1748166012086,0.55,2472.8,2472.1,0.7731]
[1748166012280,7.52494222,2473.2,2472.1,0.7731]
[1748166012432,4.035,2473.1,2472.1,0.7731]
[1748166012766,4.585,2473.0,2472.1,0.7731]
[1748166012971,8.0,2473.6,2472.1,0.7731]
[1748166012972,4.035,2472.9,2472.1,0.7731]
[1748166013267,0.55,2472.8,2472.1,0.7731]
[1748166013684,0.55,2473.2,2472.1,0.7731]
[1748166013834,4.035,2473.1,2472.1,0.7731]
[1748166014366,0.55,2473.0,2472.1,0.7731]
[1748166014533,0.55,2473.0,2472.2,0.7531]
[1748166014930,0.55,2472.8,2472.2,0.7531]
[1748166015131,4.035,2472.9,2472.2,0.7531]
[1748166015370,7.52494222,2473.7,2472.2,0.7531]
[1748166015530,4.035,2473.6,2472.2,0.7531]
[1748166015933,0.7982,2473.9,2472.3,0.8073]
[1748166016134,11.55994222,2473.5,2472.3,0.8073]
[1748166016345,0.55,2473.1,2472.4,4.954]
[1748166016688,0.55,2472.9,2472.4,4.954]
[1748166017277,0.60055231,2472.9,2472.4,4.954]
[1748166017442,0.55,2472.9,2472.4,4.954]
[1748166017843,0.05055228,2473.1,2472.4,4.954]
[1748166017844,0.7982,2473.3,2472.4,4.954]
[1748166018044,0.55,2473.2,2472.4,4.954]
[1748166018276,4.585,2473.2,2472.4,4.954]
[1748166018777,0.55,2473.0,2472.5,8.0]
[1748166019849,4.035,2473.1,2472.6,0.8073]
[1748166020982,0.55,2473.0,2472.6,0.8073]
[1748166021182,0.55,2473.0,2472.7,4.954]
[1748166021399,8.07494222,2472.8,2472.1,0.02]
[1748166021603,0.55,2472.6,2472.2,4.954]
[1748166021786,0.55,2472.4,2472.2,4.954]
[1748166022296,0.60056239,2472.4,2472.2,4.954]
[1748166022706,0.60056239,2472.4,2472.3,4.954]
[1748166022861,0.55,2472.4,2472.3,4.954]
[1748166023062,1.76099422,2472.4,2472.3,4.954]
[1748166023399,1.76099422,2472.4,2472.1,0.02]
[1748166023601,8.07494222,2472.2,2472.1,0.02]
[1748166023757,8.07494222,2472.2,2472.1,4.974]
[1748166025302,0.55,2472.2,2472.1,4.974]
[1748166026362,4.585,2472.2,2472.1,4.974]
[1748166026773,9.99,2472.8,2472.1,4.974]
[1748166026974,4.036,2472.7,2472.2,0.8073]
[1748166027291,9.99,2472.8,2472.2,0.8073]
[1748166027486,4.036,2472.7,2472.2,0.8073]
[1748166027889,0.55,2472.6,2472.2,0.8073]
[1748166028062,0.55,2472.6,2472.3,4.954]
[1748166029695,9.53254222,2472.6,2472.3,4.954]
[1748166030073,2.0076,2472.6,2472.3,4.954]
[1748166030269,0.55,2472.6,2472.3,4.954]
[1748166031004,0.55,2472.6,2472.4,4.947]
[1748166032200,9.99,2472.8,2472.4,4.947]
[1748166032378,4.036,2472.7,2472.4,4.947]
[1748166032597,4.036,2472.6,2472.4,4.947]
[1748166032997,0.20984993,2473.2,2472.5,0.8073]
[1748166033194,4.036,2473.1,2472.5,0.8073]
[1748166033567,0.55,2473.0,2472.5,0.8073]
[1748166033770,8.07494222,2473.0,2472.6,4.947]
[1748166034304,0.55,2473.0,2472.6,4.947]
[1748166034806,4.036,2472.9,2472.6,4.947]
[1748166035011,0.55,2472.9,2472.7,0.7724]
[1748166037589,1.0086,2472.9,2472.8,4.947]
[1748166040672,9.99,2473.4,2472.8,4.947]
[1748166040876,7.52494222,2473.2,2472.8,5.7284]
[1748166041613,7.52494222,2473.2,2472.8,4.947]
[1748166041816,0.55,2473.0,2472.8,4.947]
[1748166042015,4.585,2472.9,2472.8,4.947]
[1748166045373,0.37678021,2473.3,2472.8,4.947]
[1748166045580,4.585,2473.2,2472.8,4.947]
[1748166046277,4.585,2473.2,2472.9,4.947]
[1748166046490,0.55,2473.2,2473.0,0.7788]
[1748166046735,14.025,2473.4,2473.0,0.7788]
[1748166046909,9.99,2473.4,2473.0,0.7788]
[1748166047238,14.025,2473.4,2473.0,0.7788]
[1748166047735,14.025,2473.4,2473.1,4.947]